bitfinex/quotes_SOLUSD_20230113
["timestamp","ask_amount","ask_price","bid_price","bid_amount"]
[1673651820915,44.32342184,18.144,18.117,130.8492]
[1673651821138,6.35237,18.143,18.117,110.8492]
[1673651821454,24.32342184,18.142,18.117,110.8492]
[1673651821665,4.32342184,18.14,18.117,110.8492]
[1673651821863,6.35237,18.139,18.117,110.8492]
[1673651822065,4.32342184,18.138,18.117,110.8492]
[1673651822507,4.32342184,18.138,18.118,20.0]
[1673651822708,6.35237,18.137,18.119,20.0]
[1673651823032,4.32342184,18.136,18.12,20.0]
[1673651823348,108.7953,18.14,18.12,20.0]
[1673651823349,4.32342184,18.139,18.12,20.0]
[1673651823752,4.32342184,18.139,18.118,20.0]
[1673651826060,4.32342184,18.139,18.117,110.8492]
[1673651826274,24.32342184,18.139,18.117,110.8492]
[1673651827318,24.32342184,18.139,18.119,20.0]
[1673651827655,24.32342184,18.139,18.118,20.0]
[1673651828268,24.32342184,18.139,18.117,110.8492]
[1673651828480,24.32342184,18.139,18.118,74.25]
[1673651829235,24.32342184,18.139,18.118,54.25]
[1673651829762,4.32342184,18.139,18.12,54.25]
[1673651829968,4.32342184,18.139,18.122,54.25]
[1673651830281,4.32342184,18.139,18.123,74.25]
[1673651833231,4.32342184,18.139,18.123,236.05]
[1673651833544,20.0,18.159,18.125,161.8]
[1673651833758,115.3189,18.157,18.126,20.0]
[1673651834163,115.3189,18.157,18.127,35.54689237]
[1673651834367,115.3189,18.157,18.128,20.0]
[1673651834584,119.6871,18.16,18.128,238.67168899]
[1673651834784,119.6871,18.16,18.129,303.12022285]
[1673651835003,126.03947,18.16,18.13,136.5188]
[1673651835226,126.03947,18.16,18.131,181.8]
[1673651835431,20.0,18.158,18.133,20.0]
[1673651835652,20.0,18.158,18.134,20.0]
[1673651835966,20.0,18.158,18.134,76.87168899]
[1673651836153,20.0,18.158,18.135,119.8713]
[1673651836359,20.0,18.158,18.136,20.0]
[1673651836590,20.0,18.159,18.136,20.0]
[1673651836993,6.35237,18.159,18.137,217.34689237]
[1673651837203,135.3189,18.169,18.138,20.0]
[1673651837542,6.35237,18.168,18.139,20.0]
[1673651837753,6.35237,18.168,18.141,20.0]
[1673651838062,6.35237,18.168,18.142,20.0]
[1673651838679,6.35237,18.168,18.141,20.0]
[1673651839101,6.35237,18.168,18.143,48.90164149]
[1673651839313,98.17090078,18.167,18.131,113.0163]
[1673651839526,98.17090078,18.167,18.132,20.0]
[1673651839527,26.35237,18.166,18.132,20.0]
[1673651839847,26.35237,18.165,18.132,20.0]
[1673651840070,26.35237,18.164,18.132,20.0]
[1673651840251,26.35237,18.164,18.131,113.0163]
[1673651840252,26.35237,18.163,18.131,113.0163]
[1673651840461,26.35237,18.162,18.131,113.0163]
[1673651840676,138.62557,18.161,18.131,113.0163]
[1673651841006,26.35237,18.16,18.131,113.0163]
[1673651841199,26.35237,18.159,18.131,113.0163]
[1673651841410,26.35237,18.158,18.131,113.0163]
[1673651841620,6.35237,18.157,18.131,113.0163]
[1673651842466,6.35237,18.157,18.133,20.0]
[1673651842678,6.35237,18.157,18.134,20.0]
[1673651843199,6.35237,18.157,18.132,20.0]
[1673651843410,6.35237,18.157,18.133,20.0]
[1673651843619,6.35237,18.157,18.132,20.0]
[1673651843620,6.35237,18.157,18.134,20.0]
[1673651843839,6.35237,18.157,18.132,20.0]
[1673651845728,46.98481196,18.157,18.132,20.0]
[1673651845944,17.0,18.156,18.131,113.0163]
[1673651846161,46.35237,18.155,18.131,113.0163]
[1673651846353,20.0,18.153,18.131,113.0163]
[1673651846563,26.35237,18.152,18.131,113.0163]
[1673651846785,26.35237,18.151,18.131,113.0163]
[1673651846978,136.32287,18.15,18.131,113.0163]
[1673651847189,26.35237,18.149,18.131,113.0163]
[1673651847411,6.35237,18.148,18.131,113.0163]
[1673651848048,6.35237,18.148,18.112,392.3]
[1673651848049,203.06607516,18.147,18.104,28.71730316]
[1673651848238,6.35237,18.146,18.115,112.709]
[1673651848454,202.60593053,18.145,18.115,112.709]
[1673651848664,20.0,18.142,18.115,112.709]
[1673651849002,30.15830053,18.141,18.115,112.709]
[1673651849186,3.80593053,18.139,18.115,112.709]
[1673651849393,3.80593053,18.137,18.115,112.709]
[1673651849604,3.80593053,18.135,18.115,112.709]
[1673651849823,20.0,18.132,18.115,112.709]
[1673651850031,3.80593053,18.13,18.115,112.709]
[1673651850254,10.15830053,18.13,18.115,112.709]
[1673651851306,10.15830053,18.13,18.116,20.0]
[1673651852981,6.35237,18.13,18.116,20.0]
[1673651853301,3.80593053,18.129,18.116,20.0]
[1673651853495,6.35237,18.128,18.111,108.4573]
[1673651853713,6.35237,18.128,18.103,20.0]
[1673651853918,6.35237,18.128,18.103,128.4573]
[1673651854150,6.35237,18.128,18.104,22.87872658]
[1673651854341,3.80593053,18.127,18.104,22.87872658]
[1673651854546,20.0,18.133,18.104,22.87872658]
[1673651854547,3.80593053,18.125,18.104,22.87872658]
[1673651854760,10.15830053,18.125,18.104,22.87872658]
[1673651854971,6.35237,18.125,18.104,22.87872658]
[1673651856228,6.35237,18.125,18.105,20.0]
[1673651856432,6.35237,18.125,18.104,22.87872658]
[1673651857722,6.35237,18.125,18.105,20.0]
[1673651858130,3.80593053,18.133,18.106,22.87872658]
[1673651858325,6.35237,18.132,18.107,40.0]
[1673651858533,23.80593053,18.13,18.107,40.0]
[1673651858760,3.80593053,18.128,18.108,22.87872658]
[1673651858978,10.15830053,18.128,18.108,22.87872658]
[1673651859179,20.0,18.127,18.108,22.87872658]
[1673651859397,10.15830053,18.126,18.109,20.0]
[1673651860240,10.15830053,18.126,18.106,22.87872658]
[1673651860562,10.15830053,18.126,18.107,20.0]
[1673651860958,6.35237,18.126,18.107,20.0]
[1673651861714,6.35237,18.126,18.107,42.87872658]
[1673651862141,6.35237,18.126,18.107,20.0]
[1673651862318,6.35237,18.125,18.105,20.0]
[1673651862528,6.35237,18.125,18.104,20.0]
[1673651862738,6.35237,18.125,18.104,42.87872658]
[1673651862954,6.35237,18.125,18.105,22.87872658]
[1673651863167,6.35237,18.125,18.106,20.0]
[1673651863611,6.35237,18.125,18.106,42.87872658]
[1673651863797,6.35237,18.125,18.106,20.0]
[1673651864119,3.80593053,18.124,18.104,20.0]
[1673651864337,6.35237,18.123,18.104,20.0]
[1673651867491,6.35237,18.123,18.103,108.4573]
[1673651867683,23.80593053,18.122,18.09,91.8937]
[1673651867906,23.80593053,18.12,18.099,22.87872658]
[1673651868103,3.80593053,18.118,18.099,22.87872658]
[1673651868315,3.80593053,18.116,18.099,22.87872658]
[1673651868526,3.80593053,18.114,18.091,138.8315]
[1673651868952,3.80593053,18.114,18.093,20.0]
[1673651869398,3.80593053,18.116,18.093,204.67872658]
[1673651869800,3.80593053,18.118,18.094,22.87872658]
[1673651870015,3.80593053,18.129,18.095,20.0]
[1673651870223,6.35237,18.129,18.096,161.8]
[1673651870550,116.7567,18.13,18.097,20.0]
[1673651870767,116.7567,18.13,18.098,161.8]
[1673651870982,116.7567,18.13,18.098,184.67872658]
[1673651871290,116.7567,18.13,18.1,181.8]
[1673651871498,116.7567,18.13,18.102,161.8]
[1673651871709,116.7567,18.13,18.104,20.0]
[1673651871920,116.7567,18.13,18.104,181.8]
[1673651872230,116.7567,18.13,18.106,181.8]
[1673651872444,116.7567,18.13,18.107,20.0]
[1673651872652,116.3766,18.137,18.108,20.0]
[1673651872867,116.3766,18.137,18.109,20.0]
[1673651873069,116.3766,18.137,18.111,20.0]
[1673651873285,116.3766,18.137,18.112,20.0]
[1673651873485,116.3766,18.137,18.112,42.87872658]
[1673651873691,116.3766,18.137,18.112,20.0]
[1673651873904,116.3766,18.137,18.114,20.0]
[1673651874118,116.3766,18.137,18.115,20.0]
[1673651874324,116.3766,18.137,18.115,42.87872658]
[1673651874537,116.3766,18.137,18.116,22.87872658]
[1673651874741,116.3766,18.137,18.117,20.0]
[1673651874962,6.35237,18.137,18.118,116.4112]
[1673651875178,6.35237,18.137,18.119,20.0]
[1673651886332,37.0,18.136,18.102,648.15]
[1673651886539,37.0,18.136,18.107,118.1204]
[1673651886540,8.68305586,18.135,18.107,118.1204]
[1673651886754,26.35237,18.134,18.107,118.1204]
[1673651886960,25.68305586,18.133,18.107,118.1204]
[1673651887168,26.35237,18.132,18.107,118.1204]
[1673651887366,25.68305586,18.131,18.107,118.1204]
[1673651887584,6.35237,18.13,18.107,118.1204]
[1673651887793,20.0,18.128,18.107,118.1204]
[1673651888112,8.68305586,18.127,18.107,118.1204]
[1673651888325,6.35237,18.126,18.107,118.1204]
[1673651888521,2.33068586,18.125,18.107,118.1204]
[1673651888751,6.35237,18.124,18.107,118.1204]
[1673651889268,6.35237,18.124,18.102,54.25]
[1673651889487,3.3971206,18.122,18.094,54.25]
[1673651889689,3.3971206,18.12,18.094,54.25]
[1673651890006,23.3971206,18.118,18.094,54.25]
[1673651890222,6.35237,18.117,18.094,54.25]
[1673651890428,3.3971206,18.116,18.094,54.25]
[1673651890631,6.35237,18.115,18.094,54.25]
[1673651890950,3.3971206,18.114,18.094,54.25]
[1673651891159,3.3971206,18.112,18.094,54.25]
[1673651891478,6.35237,18.111,18.094,54.25]
[1673651892221,6.35237,18.111,18.096,54.25]
[1673651892418,6.35237,18.111,18.097,74.25]
[1673651892627,6.35237,18.111,18.097,54.25]
[1673651892844,20.0,18.11,18.097,54.25]
[1673651893044,9.7494906,18.109,18.097,54.25]
[1673651893249,6.35237,18.108,18.097,54.25]
[1673651893471,3.3971206,18.107,18.087,54.25]
[1673651893797,6.35237,18.106,18.087,54.25]
[1673651894108,3.3971206,18.105,18.087,54.25]
[1673651894317,6.35237,18.104,18.087,54.25]
[1673651895053,3.3971206,18.103,18.087,54.25]
[1673651895246,6.35237,18.103,18.087,54.25]
[1673651895685,117.3742,18.13,18.089,54.25]
[1673651895898,20.0,18.119,18.093,54.25]
[1673651896226,20.0,18.119,18.095,54.25]
[1673651896753,20.0,18.119,18.097,54.25]
[1673651896972,20.0,18.119,18.098,20.0]
[1673651898129,20.0,18.119,18.093,216.05]
[1673651898130,20.0,18.119,18.095,54.25]
[1673651898338,20.0,18.119,18.097,54.25]
[1673651898532,20.0,18.119,18.098,20.0]
[1673651899707,20.0,18.119,18.092,54.25]
[1673651899916,26.35237,18.119,18.094,54.25]
[1673651900107,26.35237,18.119,18.096,54.25]
[1673651900319,26.35237,18.119,18.097,74.25]
[1673651901174,26.35237,18.119,18.098,113.1424]
[1673651901394,26.35237,18.119,18.099,20.0]
[1673651901917,6.35237,18.119,18.099,20.0]
[1673651902859,20.0,18.125,18.099,20.0]
[1673651903047,20.0,18.119,18.099,20.0]
[1673651905791,20.0,18.125,18.099,20.0]
[1673651905988,20.0,18.118,18.099,20.0]
[1673651908619,40.0,18.119,18.099,20.0]
[1673651909689,20.0,18.119,18.099,20.0]
[1673651913148,244.97251156,18.142,18.099,20.0]
[1673651913149,161.8,18.143,18.099,20.0]
[1673651913362,113.0012,18.138,18.099,26.37519]
[1673651913567,113.0012,18.138,18.101,20.0]
[1673651913568,47.73909126,18.136,18.101,20.0]
[1673651913766,47.73909126,18.136,18.102,20.0]
[1673651913973,61.88318246,18.137,18.102,20.0]
[1673651914190,20.0,18.136,18.103,20.0]
[1673651914405,20.0,18.136,18.104,20.0]
[1673651914619,20.0,18.136,18.105,20.0]
[1673651914830,20.0,18.136,18.101,20.0]
[1673651914831,20.0,18.136,18.106,20.0]
[1673651915052,20.0,18.136,18.107,112.4632]
[1673651915236,20.0,18.136,18.108,20.0]
[1673651915237,20.0,18.129,18.108,20.0]
[1673651915446,6.35237,18.128,18.108,20.0]
[1673651915759,6.35237,18.128,18.085,31.1133535]
[1673651915760,20.0,18.127,18.101,132.4632]
[1673651916194,109.62227372,18.127,18.101,132.4632]
[1673651919887,61.88318246,18.127,18.101,132.4632]
[1673651920095,41.88318246,18.127,18.101,132.4632]
[1673651920503,119.9082,18.128,18.101,132.4632]
[1673651921025,119.9082,18.128,18.101,152.20642597]
[1673651921453,167.64729126,18.128,18.101,112.4632]
[1673651921664,46.35237,18.127,18.101,112.4632]
[1673651921986,112.97464372,18.126,18.101,112.4632]
[1673651922197,26.35237,18.125,18.101,112.4632]
[1673651922406,20.0,18.123,18.101,112.4632]
[1673651922608,20.0,18.122,18.101,112.4632]
[1673651923013,20.0,18.121,18.101,112.4632]
[1673651923228,20.0,18.12,18.101,112.4632]
[1673651923448,20.0,18.119,18.101,112.4632]
[1673651926826,61.88318246,18.119,18.094,392.3]
[1673651927035,6.35237,18.118,18.095,129.3434]
[1673651927754,48.23555246,18.118,18.095,129.3434]
[1673651928393,20.0,18.117,18.095,129.3434]
[1673651928723,26.35237,18.117,18.095,129.3434]
[1673651931350,20.0,18.115,18.095,129.3434]
[1673651931546,26.35237,18.115,18.095,129.3434]
[1673651932274,26.35237,18.115,18.078,449.73460632]
[1673651932491,26.35237,18.115,18.087,115.7317]
[1673651932492,20.0,18.113,18.087,115.7317]
[1673651932696,26.35237,18.112,18.087,115.7317]
[1673651932927,20.0,18.111,18.087,115.7317]
[1673651933133,20.0,18.109,18.087,115.7317]
[1673651933749,110.541,18.11,18.088,20.0]
[1673651933955,20.0,18.109,18.088,20.0]
[1673651934386,40.0,18.109,18.087,115.7317]
[1673651934597,40.0,18.109,18.088,20.0]
[1673651935428,20.0,18.108,18.088,20.0]
[1673651936267,20.0,18.109,18.088,20.0]
[1673651936482,40.0,18.109,18.088,20.0]
[1673651937748,20.0,18.109,18.088,20.0]
[1673651938175,20.0,18.109,18.089,21.4480608]
[1673651938388,20.0,18.109,18.09,20.0]
[1673651939107,20.0,18.109,18.089,21.4480608]
[1673651939315,20.0,18.109,18.088,20.0]
[1673651939542,20.0,18.109,18.09,21.4480608]
[1673651940071,20.0,18.109,18.088,20.0]
[1673651940682,20.0,18.109,18.088,41.4480608]
[1673651941098,20.0,18.109,18.088,20.0]
[1673651941314,20.0,18.108,18.088,20.0]
[1673651941955,26.35237,18.108,18.088,20.0]
[1673651945122,26.35237,18.108,18.085,31.1133535]
[1673651945123,26.35237,18.108,18.085,18.1133535]
[1673651945326,20.0,18.106,18.085,18.1133535]
[1673651945534,26.35237,18.105,18.085,18.1133535]
[1673651945747,26.35237,18.104,18.085,18.1133535]
[1673651945960,26.35237,18.103,18.085,18.1133535]
[1673651946163,6.35237,18.102,18.085,18.1133535]
[1673651946383,20.0,18.101,18.085,18.1133535]
[1673651946580,20.0,18.1,18.085,18.1133535]
[1673651947737,20.0,18.099,18.085,18.1133535]
[1673651950572,26.35237,18.099,18.085,18.1133535]
[1673651950781,0.92630124,18.098,18.085,0.0033535]
[1673651951113,0.92630124,18.096,18.071,111.8489]
[1673651951320,6.35237,18.095,18.071,111.8489]
[1673651951633,20.92630124,18.094,18.071,111.8489]
[1673651951822,20.0,18.092,18.071,111.8489]
[1673651952033,0.92630124,18.09,18.071,111.8489]
[1673651952252,6.35237,18.089,18.071,111.8489]
[1673651952676,0.61363256,18.088,18.071,111.8489]
[1673651952897,6.35237,18.088,18.071,111.8489]
[1673651953098,6.35237,18.088,18.06,86.3692]
[1673651953302,0.73471289,18.087,18.061,112.5587]
[1673651953514,7.08708289,18.087,18.061,112.5587]
[1673651953948,20.0,18.086,18.061,112.5587]
[1673651954354,20.0,18.086,18.061,274.3587]
[1673651954565,130.3716,18.09,18.062,20.0]
[1673651954781,20.0,18.089,18.062,20.0]
[1673651955186,43.13780245,18.096,18.062,20.0]
[1673651955187,43.13780245,18.096,18.063,21.44580809]
[1673651955402,20.0,18.118,18.064,161.8]
[1673651955615,143.866,18.107,18.065,6.38719]
[1673651955938,20.0,18.099,18.068,216.05]
[1673651956151,143.866,18.107,18.071,20.0]
[1673651956359,20.0,18.099,18.072,20.0]
[1673651956575,20.0,18.099,18.072,12.5]
[1673651956782,20.0,18.099,18.072,72.37529332]
[1673651956991,20.0,18.099,18.073,79.96468829]
[1673651957212,143.866,18.107,18.074,20.0]
[1673651957532,20.0,18.099,18.074,99.96468829]
[1673651957723,20.0,18.099,18.075,113.32283241]
[1673651958040,20.0,18.098,18.076,46.86087242]
[1673651958258,20.0,18.098,18.077,137.5038]
[1673651958469,20.0,18.098,18.077,178.14761588]
[1673651958657,20.0,18.098,18.078,46.86087242]
[1673651958874,20.0,18.098,18.079,20.0]
[1673651959510,143.866,18.107,18.079,94.4526412]
[1673651959930,113.866,18.107,18.08,41.68398921]
[1673651960138,113.866,18.107,18.082,20.0]
[1673651960473,113.866,18.107,18.083,20.0]
[1673651960672,113.866,18.107,18.083,69.07580375]
[1673651960986,113.866,18.107,18.084,48.58154375]
[1673651961212,113.866,18.107,18.085,20.0]
[1673651961397,113.866,18.107,18.085,131.3603]
[1673651961611,113.866,18.107,18.086,48.57596945]
[1673651961828,113.866,18.107,18.087,20.0]
[1673651962675,113.866,18.107,18.087,15.0]
[1673651963289,113.866,18.107,18.087,63.15632945]
[1673651964349,20.0,18.119,18.087,63.15632945]
[1673651964553,6.35237,18.118,18.088,62.5785973]
[1673651964876,6.35237,18.118,18.087,63.15632945]
[1673651964877,6.35237,18.118,18.089,76.90966278]
[1673651965082,6.35237,18.118,18.091,20.0]
[1673651965276,6.35237,18.118,18.092,20.0]
[1673651965489,6.35237,18.118,18.092,76.90966278]
[1673651965705,6.35237,18.118,18.093,2.14847415]
[1673651965925,6.35237,18.118,18.093,172.14733693]
[1673651966137,6.35237,18.118,18.094,76.90966278]
[1673651966566,6.35237,18.118,18.095,56.90966278]
[1673651966754,6.35237,18.118,18.093,113.0892]
[1673651966755,20.0,18.117,18.093,113.0892]
[1673651966968,26.35237,18.116,18.08,117.629]
[1673651967183,26.35237,18.115,18.081,113.0892]
[1673651967396,23.35237,18.114,18.081,113.0892]
[1673651967600,161.15447,18.113,18.081,113.0892]
[1673651967819,26.35237,18.112,18.081,113.0892]
[1673651968016,26.35237,18.111,18.081,113.0892]
[1673651968231,26.35237,18.11,18.081,113.0892]
[1673651968456,23.35237,18.109,18.081,113.0892]
[1673651968646,20.0,18.107,18.081,113.0892]
[1673651968853,20.0,18.105,18.081,113.0892]
[1673651969077,6.35237,18.104,18.081,113.0892]
[1673651969287,6.35237,18.104,18.07,81.9602]
[1673651969288,20.0,18.102,18.07,81.9602]
[1673651969496,26.35237,18.101,18.071,119.2466]
[1673651969709,65.84841692,18.101,18.071,119.2466]
[1673651969928,20.0,18.099,18.071,119.2466]
[1673651970124,6.35237,18.098,18.072,20.0]
[1673651970334,6.35237,18.098,18.071,119.2466]
[1673651970764,20.0,18.097,18.071,119.2466]
[1673651971085,26.35237,18.096,18.071,119.2466]
[1673651971399,20.0,18.094,18.071,119.2466]
[1673651971612,20.0,18.093,18.071,119.2466]
[1673651971814,26.35237,18.093,18.071,119.2466]
[1673651972321,6.35237,18.093,18.071,119.2466]
[1673651972758,6.35237,18.093,18.071,140.69240809]
[1673651972967,6.35237,18.093,18.071,119.2466]
[1673651973286,20.0,18.092,18.071,119.2466]
[1673651973489,6.35237,18.093,18.071,119.2466]
[1673651973718,20.0,18.098,18.071,119.2466]
[1673651974020,20.0,18.098,18.072,21.44580809]
[1673651974247,6.35237,18.097,18.073,20.0]
[1673651974633,20.0,18.099,18.073,41.44580809]
[1673651974841,20.0,18.099,18.074,20.0]
[1673651975084,137.9618,18.1,18.075,20.0]
[1673651975295,137.9618,18.1,18.075,41.44580809]
[1673651975478,20.0,18.099,18.076,21.44580809]
[1673651975688,20.0,18.099,18.077,20.0]
[1673651976653,137.9618,18.1,18.077,20.0]
[1673651976654,117.9618,18.1,18.077,20.0]
[1673651976852,20.0,18.098,18.077,20.0]
[1673651977268,117.9618,18.1,18.077,20.0]
[1673651977595,20.0,18.099,18.078,41.8047032]
[1673651977794,20.0,18.099,18.08,20.0]
[1673651978020,40.0,18.099,18.077,41.44580809]
[1673651978654,20.0,18.109,18.078,20.0]
[1673651978968,20.0,18.109,18.079,41.44580809]
[1673651979292,26.35237,18.107,18.08,41.44580809]
[1673651979516,26.35237,18.107,18.081,118.8905]
[1673651979699,6.35237,18.107,18.082,20.0]
[1673651979910,6.35237,18.107,18.083,20.0]
[1673651980241,6.35237,18.107,18.084,20.0]
[1673651980650,20.0,18.106,18.081,118.8905]
[1673651980982,6.35237,18.105,18.081,118.8905]
[1673651981695,20.0,18.104,18.081,118.8905]
[1673651982135,58.09794735,18.105,18.081,118.8905]
[1673651982443,51.74557735,18.105,18.081,118.8905]
[1673651982653,20.0,18.104,18.081,118.8905]
[1673651983179,20.0,18.104,18.083,20.0]
[1673651983390,20.0,18.104,18.071,181.8]
[1673651983391,64.87804692,18.104,18.06,24.4344]
[1673651983602,6.35237,18.103,18.072,119.9338]
[1673651984024,44.87804692,18.102,18.072,119.9338]
[1673651984213,26.35237,18.101,18.072,119.9338]
[1673651984432,23.35237,18.1,18.072,119.9338]
[1673651984748,26.35237,18.099,18.072,119.9338]
[1673651984951,43.35237,18.098,18.072,119.9338]
[1673651985161,20.0,18.096,18.072,119.9338]
[1673651985381,6.35237,18.095,18.072,119.9338]
[1673651985587,20.0,18.094,18.072,119.9338]
[1673651985792,20.0,18.093,18.072,119.9338]
[1673651986009,26.35237,18.092,18.072,119.9338]
[1673651986216,6.35237,18.091,18.072,119.9338]
[1673651986423,20.0,18.089,18.072,119.9338]
[1673651986852,103.24434115,18.089,18.072,119.9338]
[1673651987059,6.35237,18.088,18.072,119.9338]
[1673651987493,82.55100782,18.087,18.072,119.9338]
[1673651987709,20.0,18.086,18.06,87.4185]
[1673651988028,6.35237,18.085,18.06,87.4185]
[1673651988234,144.80661846,18.085,18.06,87.4185]
[1673651988423,120.87233783,18.084,18.061,111.7688]
[1673651988628,6.35237,18.083,18.061,111.7688]
[1673651988845,143.95291072,18.083,18.062,20.0]
[1673651989153,91.39850516,18.082,18.062,20.0]
[1673651989364,156.27655208,18.082,18.061,111.7688]
[1673651989584,141.75091066,18.081,18.061,111.7688]
[1673651989800,20.0,18.079,18.061,111.7688]
[1673651990007,6.35237,18.078,18.058,31.1133535]
[1673651990210,97.3449863,18.078,18.058,31.1133535]
[1673651990439,52.65670567,18.077,18.058,31.1133535]
[1673651990629,20.0,18.076,18.058,31.1133535]
[1673651991259,110.03928297,18.076,18.058,31.1133535]
[1673651991469,37.3825773,18.076,18.058,31.1133535]
[1673651991677,20.0,18.079,18.058,31.1133535]
[1673651991897,36.90184432,18.076,18.058,31.1133535]
[1673651992318,36.90184432,18.076,18.059,20.0]
[1673651992629,26.35237,18.075,18.058,31.1133535]
[1673651992839,20.0,18.075,18.058,31.1133535]
[1673651993887,51.09430059,18.075,18.058,31.1133535]
[1673651994113,51.09430059,18.075,18.059,20.0]
[1673651994520,20.0,18.075,18.059,20.0]
[1673651995262,6.35237,18.074,18.059,20.0]
[1673651996090,6.35237,18.074,18.058,31.1133535]
[1673651998197,20.0,18.072,18.058,31.1133535]
[1673651998423,20.0,18.071,18.058,31.1133535]
[1673651998635,20.0,18.072,18.058,31.1133535]
[1673651998832,20.0,18.071,18.058,31.1133535]
[1673651999241,20.0,18.072,18.058,31.1133535]
[1673651999666,20.0,18.071,18.058,31.1133535]
[1673652000506,20.0,18.073,18.058,31.1133535]
[1673652000712,6.35237,18.074,18.058,31.1133535]
[1673652000942,116.4287,18.08,18.058,31.1133535]
[1673652001568,20.0,18.079,18.058,31.1133535]
[1673652002306,57.48343059,18.079,18.058,31.1133535]
[1673652002507,6.38913,18.078,18.058,31.1133535]
[1673652002717,50.57384358,18.078,18.058,31.1133535]
[1673652002929,79.17901417,18.077,18.058,31.1133535]
[1673652003138,26.38913,18.076,18.058,31.1133535]
[1673652003350,6.38913,18.075,18.058,31.1133535]
[1673652003578,20.0,18.074,18.058,31.1133535]
[1673652003791,26.38913,18.074,18.058,31.1133535]
[1673652004095,34.99430059,18.073,18.058,31.1133535]
[1673652004311,26.38913,18.072,18.058,31.1133535]
[1673652004517,6.38913,18.071,18.058,31.1133535]
[1673652004719,40.0,18.07,18.058,14.1133535]
[1673652004921,81.38343059,18.07,18.058,14.1133535]
[1673652005128,6.38913,18.069,18.058,14.1133535]
[1673652005352,41.38343059,18.069,18.058,14.1133535]
[1673652005562,20.0,18.068,18.058,14.1133535]
[1673652007131,34.99430059,18.067,18.058,14.1133535]
[1673652007337,6.38913,18.066,18.044,118.3134]
[1673652007552,40.0,18.065,18.043,54.25]
[1673652007887,41.38343059,18.064,18.043,54.25]
[1673652008128,26.38913,18.063,18.042,54.25]
[1673652008407,6.38913,18.062,18.042,147.35194227]
[1673652008623,20.0,18.06,18.042,54.25]
[1673652008836,6.38913,18.059,18.042,54.25]
[1673652010600,20.0,18.058,18.042,54.25]
[1673652010810,20.0,18.058,18.042,146.0539]
[1673652011246,20.0,18.058,18.042,108.8039]
[1673652012520,6.38913,18.059,18.042,108.8039]
[1673652012842,44.37342512,18.066,18.043,20.0]
[1673652013047,34.30096725,18.067,18.043,20.0]
[1673652013469,26.38913,18.066,18.044,20.0]
[1673652013673,26.38913,18.066,18.045,20.0]
[1673652013886,60.69009725,18.066,18.045,20.0]
[1673652014107,6.38913,18.065,18.045,20.0]
[1673652014311,6.38913,18.065,18.043,20.0]
[1673652014521,20.0,18.064,18.043,20.0]
[1673652014836,26.38913,18.064,18.043,20.0]
[1673652015027,60.69009725,18.064,18.043,20.0]
[1673652015235,26.38913,18.063,18.042,108.8039]
[1673652015449,6.38913,18.062,18.041,22.138908]
[1673652015675,20.0,18.061,18.041,22.138908]
[1673652015870,23.38913,18.06,18.031,31.1133535]
[1673652016097,26.38913,18.059,18.032,14.98443305]
[1673652016305,6.38913,18.058,18.032,14.98443305]